[Event "Titled Tuesday Blitz April 11 Late 2023"]
[White "Kushko, Dmitriy"]
[Black "Kramnik, Vladimir"]
[WhiteFideId "14162261"]
[BlackFideId "4101588"]
[WhiteElo "2230"]
[BlackElo "2712"]
[Result "0-1"]
[Round "08"]
[TimeControl "180+2"]
[Date "2023.04.11"]
[WhiteClock "0:00:15"]
[BlackClock "0:01:28"]

1. g3 {[%clk 0:03:00]}  d5 {[%clk 0:02:55]} 2. Nf3 {[%clk 0:03:00]}  g6 {[%clk 0:02:54]} 3. Bg2 {[%clk 0:03:00]}  Bg7 {[%clk 0:02:54]} 4. d4 {[%clk 0:03:00]}  Nh6 {[%clk 0:02:51]} 5. O-O {[%clk 0:02:58]}  Nf5 {[%clk 0:02:48]} 6. c3 {[%clk 0:02:56]}  O-O {[%clk 0:02:46]} 7. Nbd2 {[%clk 0:02:56]}  Nd6 {[%clk 0:02:45]} 8. Re1 {[%clk 0:02:56]}  f5 {[%clk 0:02:27]} 9. Nb3 {[%clk 0:02:43]}  Nd7 {[%clk 0:02:22]} 10. Bf4 {[%clk 0:02:42]}  Nf6 {[%clk 0:02:22]} 11. Nc5 {[%clk 0:02:39]}  h6 {[%clk 0:02:20]} 12. h4 {[%clk 0:02:26]}  Kh7 {[%clk 0:02:20]} 13. Ne5 {[%clk 0:02:17]}  Nde4 {[%clk 0:02:17]} 14. Ncd3 {[%clk 0:02:09]}  g5 {[%clk 0:02:09]} 15. hxg5 {[%clk 0:02:05]}  hxg5 {[%clk 0:02:09]} 16. Bc1 {[%clk 0:02:05]}  Qe8 {[%clk 0:02:08]} 17. f3 {[%clk 0:01:57]}  Nxg3 {[%clk 0:01:56]} 18. Bxg5 {[%clk 0:01:56]}  Qh5 {[%clk 0:01:52]} 19. Qd2 {[%clk 0:01:31]}  Nfe4 {[%clk 0:01:41]} 20. fxe4 {[%clk 0:01:24]}  fxe4 {[%clk 0:01:41]} 21. Nf2 {[%clk 0:00:55]}  Bxe5 {[%clk 0:01:36]} 22. dxe5 {[%clk 0:00:54]}  Rg8 {[%clk 0:01:36]} 23. Bf4 {[%clk 0:00:38]}  Qg6 {[%clk 0:01:35]} 24. Nd1 {[%clk 0:00:15]}  Nf1 {[%clk 0:01:28]} 0-1


[Site "https://www.chess.com"]

[Event "Titled Tuesday Blitz April 11 Late 2023"]
[White "Riehle, Marco"]
[Black "Alekseenko, Kirill"]
[WhiteFideId "12904392"]
[BlackFideId "4135539"]
[WhiteElo "2462"]
[BlackElo "2683"]
[Result "1-0"]
[Round "08"]
[TimeControl "180+2"]
[Date "2023.04.11"]
[WhiteClock "0:01:08"]
[BlackClock "0:00:39"]

1. e4 {[%clk 0:03:00]}  c5 {[%clk 0:02:59]} 2. a3 {[%clk 0:03:01]}  g6 {[%clk 0:02:57]} 3. h4 {[%clk 0:03:00]}  h5 {[%clk 0:02:57]} 4. Nc3 {[%clk 0:03:00]}  Bg7 {[%clk 0:02:57]} 5. Bc4 {[%clk 0:02:59]}  e6 {[%clk 0:02:49]} 6. d3 {[%clk 0:02:58]}  d6 {[%clk 0:02:49]} 7. Bg5 {[%clk 0:02:58]}  Bf6 {[%clk 0:02:45]} 8. Nf3 {[%clk 0:02:54]}  Nc6 {[%clk 0:02:44]} 9. Qd2 {[%clk 0:02:54]}  a6 {[%clk 0:02:39]} 10. O-O {[%clk 0:02:48]}  b5 {[%clk 0:02:32]} 11. Bb3 {[%clk 0:02:47]}  Kf8 {[%clk 0:02:25]} 12. Ne2 {[%clk 0:02:41]}  Kg7 {[%clk 0:02:23]} 13. d4 {[%clk 0:02:41]}  c4 {[%clk 0:02:22]} 14. Ba2 {[%clk 0:02:42]}  Nh6 {[%clk 0:02:14]} 15. c3 {[%clk 0:02:38]}  e5 {[%clk 0:02:07]} 16. b3 {[%clk 0:02:18]}  cxb3 {[%clk 0:01:47]} 17. Bxb3 {[%clk 0:02:19]}  Bg4 {[%clk 0:01:47]} 18. Bd5 {[%clk 0:02:04]}  Rc8 {[%clk 0:01:46]} 19. a4 {[%clk 0:02:04]}  b4 {[%clk 0:01:24]} 20. cxb4 {[%clk 0:01:51]}  Bxf3 {[%clk 0:01:23]} 21. gxf3 {[%clk 0:01:51]}  Nxd4 {[%clk 0:01:24]} 22. Nxd4 {[%clk 0:01:48]}  exd4 {[%clk 0:01:25]} 23. b5 {[%clk 0:01:43]}  a5 {[%clk 0:01:14]} 24. Rab1 {[%clk 0:01:33]}  Rc3 {[%clk 0:01:10]} 25. Kg2 {[%clk 0:01:26]}  Qe7 {[%clk 0:00:53]} 26. Rfd1 {[%clk 0:01:20]}  Qe5 {[%clk 0:00:40]} 27. Bxf6+ {[%clk 0:01:12]}  Kxf6 {[%clk 0:00:39]} 28. f4 {[%clk 0:01:08]} 1-0


[Site "https://www.chess.com"]

[Event "Titled Tuesday Blitz April 11 Late 2023"]
[White "Martinez Alcantara, Jose Eduardo"]
[Black "Yuan, Qingyu"]
[WhiteFideId "3805662"]
[BlackFideId "8609772"]
[WhiteElo "2711"]
[BlackElo "2359"]
[Result "1-0"]
[Round "08"]
[TimeControl "180+2"]
[Date "2023.04.11"]
[WhiteClock "0:01:58"]
[BlackClock "0:00:07"]

1. e4 {[%clk 0:03:00]}  e5 {[%clk 0:02:53]} 2. Nf3 {[%clk 0:03:00]}  Nc6 {[%clk 0:02:53]} 3. Bb5 {[%clk 0:03:00]}  Nf6 {[%clk 0:02:54]} 4. Nc3 {[%clk 0:02:58]}  Nd4 {[%clk 0:02:53]} 5. Bd3 {[%clk 0:02:58]}  Nxf3+ {[%clk 0:02:40]} 6. Qxf3 {[%clk 0:02:59]}  d6 {[%clk 0:02:34]} 7. h3 {[%clk 0:02:59]}  g6 {[%clk 0:02:33]} 8. Bc4 {[%clk 0:02:58]}  Bg7 {[%clk 0:02:33]} 9. d3 {[%clk 0:02:59]}  Be6 {[%clk 0:02:29]} 10. h4 {[%clk 0:02:47]}  Bg4 {[%clk 0:02:07]} 11. Qg3 {[%clk 0:02:44]}  Qd7 {[%clk 0:02:07]} 12. f3 {[%clk 0:02:40]}  Be6 {[%clk 0:02:04]} 13. h5 {[%clk 0:02:40]}  O-O-O {[%clk 0:01:49]} 14. h6 {[%clk 0:02:38]}  Bf8 {[%clk 0:01:49]} 15. Bg5 {[%clk 0:02:38]}  Be7 {[%clk 0:01:46]} 16. Qh4 {[%clk 0:02:38]}  Ng8 {[%clk 0:01:45]} 17. O-O-O {[%clk 0:02:34]}  Bxg5+ {[%clk 0:01:33]} 18. Qxg5 {[%clk 0:02:35]}  Kb8 {[%clk 0:01:25]} 19. Bxe6 {[%clk 0:02:22]}  fxe6 {[%clk 0:01:25]} 20. f4 {[%clk 0:02:23]}  Qe7 {[%clk 0:01:11]} 21. Rdf1 {[%clk 0:02:18]}  Rf8 {[%clk 0:01:06]} 22. Qxe7 {[%clk 0:02:17]}  Nxe7 {[%clk 0:01:06]} 23. fxe5 {[%clk 0:02:18]}  dxe5 {[%clk 0:01:06]} 24. Nd1 {[%clk 0:02:17]}  Nc6 {[%clk 0:00:52]} 25. Ne3 {[%clk 0:02:17]}  Kc8 {[%clk 0:00:45]} 26. Kd2 {[%clk 0:02:17]}  Kd8 {[%clk 0:00:44]} 27. Ng4 {[%clk 0:02:14]}  Ke7 {[%clk 0:00:43]} 28. Nh2 {[%clk 0:02:13]}  a5 {[%clk 0:00:35]} 29. c3 {[%clk 0:02:11]}  Rxf1 {[%clk 0:00:20]} 30. Rxf1 {[%clk 0:02:12]}  Rf8 {[%clk 0:00:20]} 31. Nf3 {[%clk 0:02:10]}  Rf4 {[%clk 0:00:18]} 32. Ke3 {[%clk 0:02:08]}  Rg4 {[%clk 0:00:17]} 33. Kf2 {[%clk 0:02:03]}  Kf6 {[%clk 0:00:15]} 34. Rh1 {[%clk 0:01:58]}  g5 {[%clk 0:00:14]} 35. g3 {[%clk 0:01:58]}  Kg6 {[%clk 0:00:09]} 36. Nh2 {[%clk 0:01:58]}  Kh5 {[%clk 0:00:10]} 37. Kf3 {[%clk 0:01:58]}  Rf4+ {[%clk 0:00:06]} 38. gxf4 {[%clk 0:01:58]}  exf4 {[%clk 0:00:07]} 39. Ng4+ {[%clk 0:01:58]}  Kg6 {[%clk 0:00:07]} 40. d4 {[%clk 0:01:59]}  a4 {[%clk 0:00:07]} 41. Ne5+ {[%clk 0:01:58]} 1-0


[Site "https://www.chess.com"]

[Event "Titled Tuesday Blitz April 11 Late 2023"]
[White "Kollars, Dmitrij"]
[Black "Martinez Ramirez, Lennis"]
[WhiteFideId "12909572"]
[BlackFideId "3509079"]
[WhiteElo "2584"]
[BlackElo "2410"]
[Result "1-0"]
[Round "08"]
[TimeControl "180+2"]
[Date "2023.04.11"]
[WhiteClock "0:00:20"]
[BlackClock "0:00:21"]

1. e4 {[%clk 0:03:00]}  c5 {[%clk 0:02:59]} 2. Nf3 {[%clk 0:03:00]}  a6 {[%clk 0:02:59]} 3. c3 {[%clk 0:02:58]}  e6 {[%clk 0:02:59]} 4. d4 {[%clk 0:02:58]}  d5 {[%clk 0:02:58]} 5. e5 {[%clk 0:02:57]}  Bd7 {[%clk 0:02:58]} 6. Bd3 {[%clk 0:02:51]}  Bb5 {[%clk 0:02:58]} 7. Bxb5+ {[%clk 0:02:41]}  axb5 {[%clk 0:02:59]} 8. O-O {[%clk 0:02:41]}  Nc6 {[%clk 0:02:57]} 9. Be3 {[%clk 0:02:31]}  c4 {[%clk 0:02:57]} 10. Nbd2 {[%clk 0:02:29]}  b4 {[%clk 0:02:56]} 11. Qc2 {[%clk 0:02:27]}  bxc3 {[%clk 0:02:52]} 12. bxc3 {[%clk 0:02:28]}  Ba3 {[%clk 0:02:52]} 13. Nb1 {[%clk 0:02:20]}  Nge7 {[%clk 0:02:49]} 14. Nxa3 {[%clk 0:02:19]}  Rxa3 {[%clk 0:02:50]} 15. Rfb1 {[%clk 0:02:18]}  Qa5 {[%clk 0:02:49]} 16. Rxb7 {[%clk 0:02:05]}  Qxc3 {[%clk 0:02:42]} 17. Qb1 {[%clk 0:01:56]}  O-O {[%clk 0:02:40]} 18. h4 {[%clk 0:01:55]}  Nf5 {[%clk 0:02:37]} 19. Bc1 {[%clk 0:01:44]}  Ra6 {[%clk 0:02:15]} 20. Bd2 {[%clk 0:01:36]}  Qa3 {[%clk 0:02:14]} 21. Bc1 {[%clk 0:01:06]}  Qa5 {[%clk 0:02:09]} 22. Be3 {[%clk 0:01:00]}  Nxe3 {[%clk 0:02:03]} 23. fxe3 {[%clk 0:01:01]}  Qc3 {[%clk 0:02:02]} 24. Qe1 {[%clk 0:00:54]}  Qxe1+ {[%clk 0:01:59]} 25. Nxe1 {[%clk 0:00:55]}  Rfa8 {[%clk 0:01:48]} 26. a3 {[%clk 0:00:54]}  h6 {[%clk 0:01:42]} 27. Nc2 {[%clk 0:00:54]}  R8a7 {[%clk 0:01:37]} 28. Rab1 {[%clk 0:00:53]}  h5 {[%clk 0:01:28]} 29. Kf2 {[%clk 0:00:47]}  Ne7 {[%clk 0:01:26]} 30. Rb8+ {[%clk 0:00:40]}  Kh7 {[%clk 0:01:26]} 31. g3 {[%clk 0:00:38]}  Nf5 {[%clk 0:01:26]} 32. R1b7 {[%clk 0:00:31]}  Kg6 {[%clk 0:01:05]} 33. Rxa7 {[%clk 0:00:29]}  Rxa7 {[%clk 0:01:06]} 34. Kf3 {[%clk 0:00:29]}  Nh6 {[%clk 0:01:01]} 35. Kf4 {[%clk 0:00:26]}  Ng4 {[%clk 0:01:01]} 36. e4 {[%clk 0:00:25]}  Nf2 {[%clk 0:00:56]} 37. exd5 {[%clk 0:00:24]}  exd5 {[%clk 0:00:57]} 38. Rb6+ {[%clk 0:00:23]}  Kh7 {[%clk 0:00:56]} 39. Rb5 {[%clk 0:00:21]}  Rd7 {[%clk 0:00:50]} 40. Nb4 {[%clk 0:00:18]}  Ra7 {[%clk 0:00:31]} 41. Nc2 {[%clk 0:00:18]}  Nd3+ {[%clk 0:00:29]} 42. Ke3 {[%clk 0:00:18]}  Rd7 {[%clk 0:00:29]} 43. a4 {[%clk 0:00:18]}  f6 {[%clk 0:00:26]} 44. exf6 {[%clk 0:00:19]}  gxf6 {[%clk 0:00:26]} 45. a5 {[%clk 0:00:20]}  Re7+ {[%clk 0:00:26]} 46. Kd2 {[%clk 0:00:19]}  Rd7 {[%clk 0:00:27]} 47. Ne3 {[%clk 0:00:18]}  Nf2 {[%clk 0:00:24]} 48. Nxd5 {[%clk 0:00:17]}  Ne4+ {[%clk 0:00:25]} 49. Kc2 {[%clk 0:00:17]}  Ra7 {[%clk 0:00:18]} 50. Nb4 {[%clk 0:00:14]}  Nxg3 {[%clk 0:00:18]} 51. a6 {[%clk 0:00:14]}  Kg6 {[%clk 0:00:17]} 52. Rb7 {[%clk 0:00:14]}  Ra8 {[%clk 0:00:17]} 53. a7 {[%clk 0:00:14]}  Nf5 {[%clk 0:00:17]} 54. Nc6 {[%clk 0:00:14]}  Nd6 {[%clk 0:00:10]} 55. Rb8 {[%clk 0:00:14]}  Rxa7 {[%clk 0:00:09]} 56. Nxa7 {[%clk 0:00:15]}  Nf5 {[%clk 0:00:10]} 57. d5 {[%clk 0:00:15]}  Ne3+ {[%clk 0:00:10]} 58. Kc3 {[%clk 0:00:14]}  Nxd5+ {[%clk 0:00:10]} 59. Kxc4 {[%clk 0:00:14]}  Ne3+ {[%clk 0:00:10]} 60. Kd3 {[%clk 0:00:14]}  Nf5 {[%clk 0:00:11]} 61. Rb4 {[%clk 0:00:14]}  Ng3 {[%clk 0:00:12]} 62. Ke3 {[%clk 0:00:13]}  Kf5 {[%clk 0:00:12]} 63. Kf3 {[%clk 0:00:13]}  Nf1 {[%clk 0:00:12]} 64. Rb5+ {[%clk 0:00:14]}  Ke6 {[%clk 0:00:12]} 65. Rxh5 {[%clk 0:00:13]}  Nd2+ {[%clk 0:00:12]} 66. Ke3 {[%clk 0:00:14]}  Nc4+ {[%clk 0:00:13]} 67. Kf4 {[%clk 0:00:14]}  Ne5 {[%clk 0:00:14]} 68. Rxe5+ {[%clk 0:00:13]}  fxe5+ {[%clk 0:00:14]} 69. Kf3 {[%clk 0:00:12]}  Kf6 {[%clk 0:00:15]} 70. Nc6 {[%clk 0:00:12]}  Kf5 {[%clk 0:00:15]} 71. Nb4 {[%clk 0:00:11]}  e4+ {[%clk 0:00:16]} 72. Kg3 {[%clk 0:00:12]}  e3 {[%clk 0:00:16]} 73. Nc2 {[%clk 0:00:12]}  e2 {[%clk 0:00:16]} 74. Ne1 {[%clk 0:00:13]}  Kg6 {[%clk 0:00:15]} 75. Kg4 {[%clk 0:00:13]}  Kh6 {[%clk 0:00:16]} 76. Ng2 {[%clk 0:00:13]}  Kg6 {[%clk 0:00:16]} 77. Kf3 {[%clk 0:00:13]}  Kh5 {[%clk 0:00:16]} 78. Kxe2 {[%clk 0:00:13]}  Kg4 {[%clk 0:00:16]} 79. Kf2 {[%clk 0:00:14]}  Kh5 {[%clk 0:00:13]} 80. Kg3 {[%clk 0:00:15]}  Kg6 {[%clk 0:00:14]} 81. Kg4 {[%clk 0:00:16]}  Kh6 {[%clk 0:00:15]} 82. h5 {[%clk 0:00:17]}  Kg7 {[%clk 0:00:15]} 83. Kg5 {[%clk 0:00:18]}  Kf7 {[%clk 0:00:15]} 84. Nf4 {[%clk 0:00:18]}  Kg8 {[%clk 0:00:16]} 85. h6 {[%clk 0:00:19]}  Kh7 {[%clk 0:00:17]} 86. Kh5 {[%clk 0:00:20]}  Kh8 {[%clk 0:00:18]} 87. Kg6 {[%clk 0:00:21]}  Kg8 {[%clk 0:00:19]} 88. Nd5 {[%clk 0:00:20]}  Kh8 {[%clk 0:00:19]} 89. Ne3 {[%clk 0:00:19]}  Kg8 {[%clk 0:00:20]} 90. Nf5 {[%clk 0:00:18]}  Kh8 {[%clk 0:00:21]} 91. Nd6 {[%clk 0:00:19]}  Kg8 {[%clk 0:00:21]} 92. h7+ {[%clk 0:00:19]}  Kh8 {[%clk 0:00:21]} 93. Nf7# {[%clk 0:00:20]} 1-0


[Site "https://www.chess.com"]

[Event "Titled Tuesday Blitz April 11 Late 2023"]
[White "Manelyuk, Daniil"]
[Black "Kovalev, Vladislav"]
[WhiteFideId "44173920"]
[BlackFideId "13504398"]
[WhiteElo "2259"]
[BlackElo "2555"]
[Result "0-1"]
[Round "08"]
[TimeControl "180+2"]
[Date "2023.04.11"]
[WhiteClock "0:00:18"]
[BlackClock "0:00:19"]

1. e4 {[%clk 0:02:53]}  e5 {[%clk 0:02:59]} 2. Nf3 {[%clk 0:02:46]}  Nc6 {[%clk 0:02:43]} 3. Bb5 {[%clk 0:02:46]}  a6 {[%clk 0:02:43]} 4. Ba4 {[%clk 0:02:46]}  Nf6 {[%clk 0:02:43]} 5. O-O {[%clk 0:02:46]}  Be7 {[%clk 0:02:43]} 6. Re1 {[%clk 0:02:44]}  b5 {[%clk 0:02:42]} 7. Bb3 {[%clk 0:02:44]}  d6 {[%clk 0:02:43]} 8. c3 {[%clk 0:02:40]}  O-O {[%clk 0:02:44]} 9. h3 {[%clk 0:02:40]}  Nb8 {[%clk 0:02:43]} 10. d4 {[%clk 0:02:40]}  Nbd7 {[%clk 0:02:44]} 11. d5 {[%clk 0:02:41]}  Nc5 {[%clk 0:02:19]} 12. Bc2 {[%clk 0:02:40]}  Bb7 {[%clk 0:02:19]} 13. Bg5 {[%clk 0:02:28]}  a5 {[%clk 0:02:15]} 14. b4 {[%clk 0:02:26]}  Ncd7 {[%clk 0:01:35]} 15. bxa5 {[%clk 0:02:19]}  Nxd5 {[%clk 0:01:30]} 16. exd5 {[%clk 0:02:10]}  Bxg5 {[%clk 0:01:30]} 17. Qd3 {[%clk 0:02:09]}  f5 {[%clk 0:01:25]} 18. Nxg5 {[%clk 0:02:00]}  Qxg5 {[%clk 0:01:24]} 19. Qxb5 {[%clk 0:01:59]}  Nc5 {[%clk 0:01:25]} 20. Na3 {[%clk 0:01:46]}  Rfb8 {[%clk 0:01:02]} 21. Qf1 {[%clk 0:01:30]}  Bxd5 {[%clk 0:01:02]} 22. Nc4 {[%clk 0:01:27]}  f4 {[%clk 0:00:49]} 23. f3 {[%clk 0:01:19]}  Qf6 {[%clk 0:00:34]} 24. Rab1 {[%clk 0:00:38]}  Qf7 {[%clk 0:00:32]} 25. Rxb8+ {[%clk 0:00:37]}  Rxb8 {[%clk 0:00:33]} 26. Nxe5 {[%clk 0:00:23]}  dxe5 {[%clk 0:00:33]} 27. Rxe5 {[%clk 0:00:24]}  Nd7 {[%clk 0:00:21]} 28. Rf5 {[%clk 0:00:21]}  Qe6 {[%clk 0:00:19]} 29. Qd3 {[%clk 0:00:18]}  Nf6 {[%clk 0:00:10]} 30. Qd4 {[%clk 0:00:11]}  Qe3+ {[%clk 0:00:09]} 31. Qxe3 {[%clk 0:00:11]}  fxe3 {[%clk 0:00:10]} 32. Re5 {[%clk 0:00:11]}  Ra8 {[%clk 0:00:06]} 33. Bb3 {[%clk 0:00:05]}  c6 {[%clk 0:00:04]} 34. c4 {[%clk 0:00:05]}  Bf7 {[%clk 0:00:04]} 35. Kf1 {[%clk 0:00:06]}  Kf8 {[%clk 0:00:04]} 36. Ke2 {[%clk 0:00:05]}  Nd7 {[%clk 0:00:04]} 37. Rg5 {[%clk 0:00:05]}  h6 {[%clk 0:00:04]} 38. Rg4 {[%clk 0:00:05]}  Rxa5 {[%clk 0:00:03]} 39. Rf4 {[%clk 0:00:06]}  Nc5 {[%clk 0:00:03]} 40. Kxe3 {[%clk 0:00:06]}  Ke7 {[%clk 0:00:04]} 41. Rd4 {[%clk 0:00:04]}  Be6 {[%clk 0:00:04]} 42. Kd2 {[%clk 0:00:04]}  Nxb3+ {[%clk 0:00:04]} 43. axb3 {[%clk 0:00:05]}  Ra2+ {[%clk 0:00:04]} 44. Ke3 {[%clk 0:00:02]}  Rxg2 {[%clk 0:00:05]} 45. h4 {[%clk 0:00:03]}  Rb2 {[%clk 0:00:06]} 46. Rd3 {[%clk 0:00:03]}  c5 {[%clk 0:00:06]} 47. Rc3 {[%clk 0:00:03]}  Kd6 {[%clk 0:00:05]} 48. f4 {[%clk 0:00:03]}  Bf5 {[%clk 0:00:06]} 49. Kf3 {[%clk 0:00:03]}  h5 {[%clk 0:00:05]} 50. Kg3 {[%clk 0:00:03]}  g6 {[%clk 0:00:06]} 51. Re3 {[%clk 0:00:04]}  Bc2 {[%clk 0:00:06]} 52. Re5 {[%clk 0:00:03]}  Rxb3+ {[%clk 0:00:06]} 53. Kf2 {[%clk 0:00:04]}  Bf5 {[%clk 0:00:07]} 54. Rd5+ {[%clk 0:00:04]}  Kc6 {[%clk 0:00:08]} 55. Re5 {[%clk 0:00:05]}  Rc3 {[%clk 0:00:08]} 56. Ke2 {[%clk 0:00:05]}  Rxc4 {[%clk 0:00:08]} 57. Re8 {[%clk 0:00:06]}  Re4+ {[%clk 0:00:09]} 58. Rxe4 {[%clk 0:00:05]}  Bxe4 {[%clk 0:00:10]} 59. Ke3 {[%clk 0:00:06]}  Bf5 {[%clk 0:00:10]} 60. Kd2 {[%clk 0:00:07]}  Kd5 {[%clk 0:00:11]} 61. Kc3 {[%clk 0:00:08]}  Ke4 {[%clk 0:00:12]} 62. Kb2 {[%clk 0:00:09]}  Kxf4 {[%clk 0:00:12]} 63. Kc1 {[%clk 0:00:10]}  Kg4 {[%clk 0:00:13]} 64. Kd2 {[%clk 0:00:10]}  Kxh4 {[%clk 0:00:14]} 65. Kc3 {[%clk 0:00:11]}  Kg4 {[%clk 0:00:15]} 66. Kb2 {[%clk 0:00:12]}  h4 {[%clk 0:00:16]} 67. Kc1 {[%clk 0:00:13]}  h3 {[%clk 0:00:17]} 68. Kd2 {[%clk 0:00:14]}  h2 {[%clk 0:00:18]} 69. Kc3 {[%clk 0:00:15]}  h1=Q {[%clk 0:00:18]} 70. Kb2 {[%clk 0:00:16]}  Qf3 {[%clk 0:00:18]} 71. Kc1 {[%clk 0:00:17]}  Kf4 {[%clk 0:00:19]} 72. Kd2 {[%clk 0:00:18]}  g5 {[%clk 0:00:19]} 0-1


[Site "https://www.chess.com"]

[Event "Titled Tuesday Blitz April 11 Late 2023"]
[White "Bortnyk, Olexandr"]
[Black "Nazari, Arad"]
[WhiteFideId "14120828"]
[BlackFideId "12577324"]
[WhiteElo "2734"]
[BlackElo "2242"]
[Result "1-0"]
[Round "08"]
[TimeControl "180+2"]
[Date "2023.04.11"]
[WhiteClock "0:02:31"]
[BlackClock "0:00:44"]

1. d4 {[%clk 0:02:54]}  Nf6 {[%clk 0:02:51]} 2. Nc3 {[%clk 0:02:54]}  d5 {[%clk 0:02:50]} 3. Bf4 {[%clk 0:02:55]}  e6 {[%clk 0:02:42]} 4. Nb5 {[%clk 0:02:55]}  Na6 {[%clk 0:02:39]} 5. e3 {[%clk 0:02:55]}  c6 {[%clk 0:02:32]} 6. Nc3 {[%clk 0:02:56]}  Nc7 {[%clk 0:02:31]} 7. Nf3 {[%clk 0:02:56]}  Bd6 {[%clk 0:02:32]} 8. Ne5 {[%clk 0:02:56]}  Qe7 {[%clk 0:02:24]} 9. Qf3 {[%clk 0:02:56]}  h6 {[%clk 0:02:23]} 10. Bd3 {[%clk 0:02:56]}  Nd7 {[%clk 0:02:15]} 11. Nxf7 {[%clk 0:02:56]}  Qxf7 {[%clk 0:01:40]} 12. Bxd6 {[%clk 0:02:56]}  Nf6 {[%clk 0:01:40]} 13. Qg3 {[%clk 0:02:51]}  Kd8 {[%clk 0:01:40]} 14. Bg6 {[%clk 0:02:48]}  Qd7 {[%clk 0:01:40]} 15. O-O-O {[%clk 0:02:48]}  b5 {[%clk 0:01:34]} 16. f3 {[%clk 0:02:46]}  a5 {[%clk 0:01:30]} 17. e4 {[%clk 0:02:47]}  a4 {[%clk 0:01:30]} 18. a3 {[%clk 0:02:47]}  Nce8 {[%clk 0:01:25]} 19. Bc5 {[%clk 0:02:45]}  Qc7 {[%clk 0:01:23]} 20. e5 {[%clk 0:02:46]}  Ng8 {[%clk 0:01:18]} 21. Qh4+ {[%clk 0:02:45]}  Ne7 {[%clk 0:01:18]} 22. Na2 {[%clk 0:02:36]}  Rf8 {[%clk 0:00:54]} 23. Nb4 {[%clk 0:02:35]}  Bb7 {[%clk 0:00:54]} 24. Rhf1 {[%clk 0:02:32]}  Qd7 {[%clk 0:00:51]} 25. f4 {[%clk 0:02:30]}  Nc7 {[%clk 0:00:50]} 26. g4 {[%clk 0:02:29]}  Na6 {[%clk 0:00:46]} 27. Nxa6 {[%clk 0:02:30]}  Bxa6 {[%clk 0:00:43]} 28. f5 {[%clk 0:02:31]}  b4 {[%clk 0:00:44]} 29. fxe6 {[%clk 0:02:31]} 1-0


[Site "https://www.chess.com"]

[Event "Titled Tuesday Blitz April 11 Late 2023"]
[White "De La Colina, Nicolas"]
[Black "Duda, Jan-Krzysztof"]
[WhiteFideId "30946921"]
[BlackFideId "1170546"]
[WhiteElo "2046"]
[BlackElo "2790"]
[Result "0-1"]
[Round "08"]
[TimeControl "180+2"]
[Date "2023.04.11"]
[WhiteClock "0:00:05"]
[BlackClock "0:00:57"]

1. e4 {[%clk 0:03:00]}  d6 {[%clk 0:03:00]} 2. d4 {[%clk 0:03:00]}  g6 {[%clk 0:03:00]} 3. Nf3 {[%clk 0:02:55]}  Bg7 {[%clk 0:03:01]} 4. c3 {[%clk 0:02:55]}  Nd7 {[%clk 0:02:56]} 5. Bd3 {[%clk 0:02:52]}  e5 {[%clk 0:02:55]} 6. O-O {[%clk 0:02:51]}  Ngf6 {[%clk 0:02:56]} 7. Re1 {[%clk 0:02:49]}  O-O {[%clk 0:02:56]} 8. Nbd2 {[%clk 0:02:46]}  b6 {[%clk 0:02:55]} 9. Nf1 {[%clk 0:02:44]}  Bb7 {[%clk 0:02:54]} 10. Ng3 {[%clk 0:02:42]}  Re8 {[%clk 0:02:55]} 11. Bc2 {[%clk 0:02:41]}  a6 {[%clk 0:02:49]} 12. a4 {[%clk 0:02:36]}  b5 {[%clk 0:02:49]} 13. h3 {[%clk 0:02:32]}  c5 {[%clk 0:02:45]} 14. Qe2 {[%clk 0:02:12]}  exd4 {[%clk 0:02:37]} 15. cxd4 {[%clk 0:02:06]}  Qb6 {[%clk 0:02:13]} 16. axb5 {[%clk 0:01:44]}  axb5 {[%clk 0:02:14]} 17. Rxa8 {[%clk 0:01:43]}  Bxa8 {[%clk 0:02:15]} 18. dxc5 {[%clk 0:01:42]}  Nxc5 {[%clk 0:02:09]} 19. Be3 {[%clk 0:01:35]}  b4 {[%clk 0:02:06]} 20. Qc4 {[%clk 0:01:25]}  Bb7 {[%clk 0:01:39]} 21. e5 {[%clk 0:01:01]}  Ba6 {[%clk 0:01:37]} 22. Qd4 {[%clk 0:00:52]}  Nfd7 {[%clk 0:01:36]} 23. Qxd6 {[%clk 0:00:41]}  Qxd6 {[%clk 0:01:31]} 24. exd6 {[%clk 0:00:42]}  Bxb2 {[%clk 0:01:31]} 25. Bxc5 {[%clk 0:00:31]}  Rxe1+ {[%clk 0:01:29]} 26. Nxe1 {[%clk 0:00:32]}  Nxc5 {[%clk 0:01:29]} 27. Ne4 {[%clk 0:00:32]}  Nd7 {[%clk 0:01:18]} 28. Nd3 {[%clk 0:00:23]}  b3 {[%clk 0:01:17]} 29. Bb1 {[%clk 0:00:16]}  Bd4 {[%clk 0:01:17]} 30. Nd2 {[%clk 0:00:10]}  b2 {[%clk 0:01:17]} 31. Kf1 {[%clk 0:00:07]}  Nc5 {[%clk 0:01:13]} 32. Ke2 {[%clk 0:00:05]}  Kf8 {[%clk 0:01:06]} 33. Bc2 {[%clk 0:00:04]}  Ke8 {[%clk 0:01:05]} 34. Nb1 {[%clk 0:00:03]}  Kd7 {[%clk 0:01:04]} 35. f3 {[%clk 0:00:04]}  Kxd6 {[%clk 0:01:03]} 36. Kd2 {[%clk 0:00:04]}  Nxd3 {[%clk 0:01:01]} 37. Bxd3 {[%clk 0:00:05]}  Bxd3 {[%clk 0:01:01]} 38. Kxd3 {[%clk 0:00:06]}  Ke5 {[%clk 0:01:01]} 39. g3 {[%clk 0:00:05]}  h5 {[%clk 0:00:58]} 40. h4 {[%clk 0:00:05]}  Bf2 {[%clk 0:00:57]} 0-1


[Site "https://www.chess.com"]

[Event "Titled Tuesday Blitz April 11 Late 2023"]
[White "Goltsev, Dmitry"]
[Black "Sieciechowicz, Marcin"]
[WhiteFideId "24176710"]
[BlackFideId "1130170"]
[WhiteElo "2336"]
[BlackElo "2302"]
[Result "1/2-1/2"]
[Round "08"]
[TimeControl "180+2"]
[Date "2023.04.11"]
[WhiteClock "0:01:47"]
[BlackClock "0:01:26"]

1. e4 {[%clk 0:02:58]}  e6 {[%clk 0:03:00]} 2. d4 {[%clk 0:02:57]}  d5 {[%clk 0:03:00]} 3. exd5 {[%clk 0:02:58]}  exd5 {[%clk 0:03:00]} 4. Nf3 {[%clk 0:02:59]}  Nc6 {[%clk 0:02:58]} 5. c4 {[%clk 0:03:00]}  Bb4+ {[%clk 0:02:57]} 6. Nc3 {[%clk 0:03:00]}  Nf6 {[%clk 0:02:57]} 7. Be2 {[%clk 0:02:59]}  O-O {[%clk 0:02:57]} 8. O-O {[%clk 0:02:59]}  dxc4 {[%clk 0:02:57]} 9. Bxc4 {[%clk 0:03:00]}  Bg4 {[%clk 0:02:58]} 10. a3 {[%clk 0:02:57]}  Ba5 {[%clk 0:02:49]} 11. Bg5 {[%clk 0:02:44]}  Bxf3 {[%clk 0:02:43]} 12. Qxf3 {[%clk 0:02:43]}  Qxd4 {[%clk 0:02:44]} 13. Bb5 {[%clk 0:02:31]}  Bxc3 {[%clk 0:02:31]} 14. bxc3 {[%clk 0:02:30]}  Qd5 {[%clk 0:02:27]} 15. Bxf6 {[%clk 0:02:09]}  Qxf3 {[%clk 0:02:21]} 16. gxf3 {[%clk 0:02:10]}  gxf6 {[%clk 0:02:22]} 17. Bxc6 {[%clk 0:02:09]}  bxc6 {[%clk 0:02:23]} 18. Rab1 {[%clk 0:02:05]}  Rab8 {[%clk 0:02:23]} 19. Rfd1 {[%clk 0:02:03]}  Rfd8 {[%clk 0:02:10]} 20. Rxd8+ {[%clk 0:02:01]}  Rxd8 {[%clk 0:02:10]} 21. Rb7 {[%clk 0:02:01]}  Rd3 {[%clk 0:02:09]} 22. Kg2 {[%clk 0:01:53]}  a5 {[%clk 0:02:07]} 23. Ra7 {[%clk 0:01:52]}  Rxc3 {[%clk 0:01:38]} 24. Rxa5 {[%clk 0:01:51]}  Kf8 {[%clk 0:01:34]} 25. Ra7 {[%clk 0:01:49]}  c5 {[%clk 0:01:27]} 26. Rxc7 {[%clk 0:01:47]}  Rxa3 {[%clk 0:01:27]} 27. Rxc5 {[%clk 0:01:47]}  Kg7 {[%clk 0:01:27]} 28. Kg3 {[%clk 0:01:47]}  Ra1 {[%clk 0:01:26]} 1/2-1/2


[Site "https://www.chess.com"]